Cogmind - Beta 13 @@@ ROGUE MODE // 2024.07.09 @ 00:27:11 Player: Selene Result: Destroyed by ES-8NP(R) with Subdweller Beam Cannon Performance ------------- Evolutions (0) 0 Regions Visited (3) 600 Robots Destroyed (42) 210 Value Destroyed (1123) 1123 Prototype IDs (1) 20 Alien Tech Used (0) 0 Bonus (0) 0 TOTAL SCORE: 1953 Bonus ------- None Cogmind --------- Core Integrity 0/250 Matter 251/300 Energy 250/250 System Corruption 0% Temperature Cool (9) Movement Rolling (115) Ox1 Location -10/Subcaves Parts ------- > --- POWER (1) -------- Ion Engine > --- PROPULSION (2) --- Light Treads Compact Wheel > --- UTILITY (2) ------ Scrap Shield > --- WEAPON (2) ------- Improved Light Cannon Battle Cannon > --- INVENTORY (5) ---- Light Treads High-capacity Storage Unit Experimental Sensor Array Rainbow Chip Grenade Launcher Peak State ------------ > --- POWER ------------ Ion Engine > --- PROPULSION ------- Spiked Treads Compact Wheel > --- UTILITY ---------- High-capacity Storage Unit Experimental Sensor Array > --- WEAPON ----------- Improved Light Cannon Improved Light Cannon > --- INVENTORY -------- Light Treads Light Treads Wheel Compact Wheel Subdweller Monowheel Cooling System Huge Storage Unit Large Matter Pod Structural Scanner Light Armor Plating Scrap Shield Riot Gun Battle Rifle Subdweller Machine Gun Improved Light Cannon Grenade Launcher Grenade Launcher Subdweller Shrapnel Launcher Flamer [Rating: 21] Favorites ----------- Power Ion Engine Engine Ion Engine Propulsion Compact Wheel Treads Light Treads Leg Aluminum Leg Wheel Compact Wheel Utility High-capacity Storage Unit Device Improved Terrain Scanner Storage High-capacity Storage Unit Processor Targeting Computer Protection Light Armor Plating Weapon Improved Light Cannon Energy Gun Small Laser Ballistic Gun Assault Rifle Ballistic Cannon Improved Light Cannon Launcher Grenade Launcher Build | -11 -10 -10 -10 ------- Run | Yrd Mat Min Sub Slots Evolved . | . . . . Power . | . . . . Propulsion . | . . . . Utility . | . . . . Weapon . | . . . . Parts Attached 49 | 6 18 3 22 Power 3 | 1 2 . . Engine 3 | 1 2 . . Core . | . . . . Reactor . | . . . . Propulsion 9 | 2 3 . 4 Treads 5 | . 1 . 4 Leg 2 | 2 . . . Wheel 2 | . 2 . . Hover . | . . . . Flight . | . . . . Utility 19 | 1 5 1 12 Device 8 | . 1 1 6 Storage 3 | 1 2 . . Processor 1 | . 1 . . Hackware . | . . . . Protection 7 | . 1 . 6 Artifact . | . . . . Weapon 18 | 2 8 2 6 Energy Gun 3 | 2 1 . . Energy Cannon . | . . . . Ballistic Gun 3 | . 3 . . Ballistic Cannon 7 | . 2 1 4 Launcher 5 | . 2 1 2 Special Weapon . | . . . . Impact Weapon . | . . . . Slashing Weapon . | . . . . Piercing Weapon . | . . . . Special Melee Weapon . | . . . . Unidentified Prototypes 1 | . . . 1 Parts Lost 9 | . 7 . 2 Power 2 | . 2 . . Propulsion 3 | . 2 . 1 Utility 2 | . 1 . 1 Weapon 2 | . 2 . . Highest Loss Streak 4 | . 4 . 1 To Critical Strikes . | . . . . Average Slot Usage (%) 97 | . 98 100 95 Engine 13 | . 13 14 14 Treads 12 | . 10 14 14 Leg 1 | . 4 . . Wheel 13 | . 12 14 14 Device 6 | . 1 12 7 Storage 12 | . 14 14 10 Protection 5 | . 9 1 6 Energy Gun 1 | . 4 . . Ballistic Gun 6 | . 19 . . Ballistic Cannon 18 | . 3 27 27 Naked Turns . | . . . . Heaviest Build 56 | 13 56 56 56 Greatest Support 26 | 20 26 16 16 Greatest Overweight (x) 3 | . 3 3 3 Average Overweight (x) 2 | . 2 3 2 Largest Inventory Capacity 20 | 8 20 20 20 Average Capacity 17 | 7 17 20 16 Most Carried 20 | 7 20 20 20 Average Carried 16 | 4 15 20 16 Final Capacity 20 | 8 20 20 5 Final Carried 20 | 7 20 20 5 Class Distribution -------------------- 100% | Mutant Dominant Class ---------------- Mutant | -10/Materials Mutant | -10/Mines Mutant | -10/Subcaves Resources | -11 -10 -10 -10 ----------- Run | Yrd Mat Min Sub Matter Collected 1491 | 260 519 123 589 Remotely . | . . . . Salvage Created 1063 | 48 589 24 402 Parts 78 | 6 37 4 31 Haulers Intercepted 2 | . 2 . . Recyclers Shooed 3 | 1 2 . . Parts Field Recycled . | . . . . Retrieved Matter . | . . . . Parts Self-Destructed 11 | . . . 11 Prevented . | . . . . Kills | -11 -10 -10 -10 ------- Run | Yrd Mat Min Sub Combat Hostiles Destroyed 30 | . 11 4 15 Guns 8 | . 8 . . Cannons 12 | . . 1 11 AOE 10 | . 3 3 4 Classes Destroyed 11 | 1 6 2 2 Worker 2 | . . 2 . Tunneler 3 | 2 1 . . Hauler 2 | . 2 . . Recycler 1 | . 1 . . Operator 1 | . 1 . . Watcher 3 | . 3 . . Swarmer 7 | . 3 3 1 Grunt 8 | . 8 . . Sentry 1 | . . . 1 Demolisher 1 | . . 1 . Subdweller 13 | . . . 13 Best Kill Streak 5 | 2 4 5 3 Combat Bots Only 4 | . 4 3 3 Max Kills in Single Turn 3 | 1 2 3 2 Gunslinging . | . . . . Exploded 2 | . 2 2 2 Melee . | . . . . Uniques/NPCs Destroyed . | . . . . Combat | -11 -10 -10 -10 -------- Run | Yrd Mat Min Sub Hostile Shots Fired 156 | . 87 6 63 Missed 45 | . 15 3 27 Damage Taken 1893 | . 956 80 857 Core 259 | . 139 24 96 Absorbed by Shields . | . . . . Core Remaining (%) 100 | 100 . . . Volleys Fired 133 | 4 72 6 51 Largest 2 | 2 2 2 2 Hottest 90 | 90 90 78 78 Shots Fired 229 | 8 117 10 94 Gun 114 | 8 106 . . Cannon 100 | . 4 8 88 Launcher 15 | . 7 2 6 Special . | . . . . Kinetic 158 | . 62 8 88 Thermal 56 | 8 48 . . Explosive 15 | . 7 2 6 Electromagnetic . | . . . . Robot Hit Streak 10 | 5 10 5 10 Robot Miss Streak 5 | 1 5 1 5 Penetration Max . | . . . . Secondary Targets . | . . . . Shots Hit Robots 137 | 5 76 7 49 Core Hits 68 | 2 32 8 26 Critical Kills . | . . . . Critical Parts Destroyed . | . . . . Critical Strikes 4 | . . 1 3 Blast 4 | . . 1 3 Melee Attacks . | . . . . Impact . | . . . . Slashing . | . . . . Piercing . | . . . . Sneak Attacks . | . . . . Combat Hostiles . | . . . . Follow-up Attacks . | . . . . Damage Inflicted 2962 | 56 1271 381 1254 Guns 968 | 56 912 . . Cannons 1168 | . 40 123 1005 Explosions 826 | . 319 258 249 Melee . | . . . . Ramming . | . . . . Kinetic 1684 | . 556 123 1005 Thermal 452 | 56 396 . . Explosive 826 | . 319 258 249 Electromagnetic . | . . . . Impact . | . . . . Slashing . | . . . . Piercing . | . . . . Highest Corruption . | . . . . Average Corruption . | . . . . Corruption Purged . | . . . . Corruption Blocked . | . . . . Overload Shots . | . . . . Overflow Damage 31 | . 21 10 . Projectiles 15 | . 15 . . Explosions 16 | . 6 10 . Melee . | . . . . Knockbacks 11 | . . 3 8 Impact . | . . . . Kinetic 11 | . . 3 8 Secondary . | . . . . Self-Inflicted Damage 109 | . 71 . 38 Shots 5 | . 3 . 2 Rammed . | . . . . Targets Rammed . | . . . . Kicked . | . . . . Crushed . | . . . . Highest Temperature 306 | 90 306 72 245 Average Temperature 102 | 40 112 37 128 Received Heat Transfer 910 | . 492 . 418 Effects 2 | . 2 . . Energy Bleed 1 | . 1 . . Interference 1 | . 1 . . Siege Activations . | . . . . Robots Corrupted . | . . . . Combat Hostiles . | . . . . Parts Fried . | . . . . Impact Corruptions . | . . . . Robots Melted . | . . . . Combat Hostiles . | . . . . Parts Melted 2 | . 2 . . Heat Transferred 1203 | 161 1042 . . Parts Sabotaged . | . . . . Parts Stolen . | . . . . Parts Stripped . | . . . . Power Chain Reactions . | . . . . Alert | -11 -10 -10 -10 ------- Run | Yrd Mat Min Sub Peak Influence 280 | 10 280 90 . Initial 30 | . 6 30 . Average 45 | 3 64 23 . Maximum Alert Level 1 | . 1 . . Low Security (%) 92 | 100 86 100 . Level 1 7 | . 13 . . Level 2 . | . . . . Level 3 . | . . . . Level 4 . | . . . . Level 5 . | . . . . High Security . | . . . . Max Security . | . . . . Squads Dispatched 3 | . 3 . . Investigation 2 | . 2 . . Extermination . | . . . . Reinforcement 1 | . 1 . . Assault . | . . . . Garrison . | . . . . Intercept . | . . . . Searches Triggered . | . . . . Construction Impeded . | . . . . Haulers Reinforced . | . . . . Active Scanning Responses . | . . . . Cargo Convoy Interrupts . | . . . . Stealth | -11 -10 -10 -10 --------- Run | Yrd Mat Min Sub Distress Signals 3 | . 3 . . Communications Jammed . | . . . . Distress Signals . | . . . . Times Spotted 45 | . 24 5 16 Peak Tracking Total 5 | . 5 3 3 Tactical Retreats 2 | . 1 1 . Traps | -11 -10 -10 -10 ------- Run | Yrd Mat Min Sub Traps Triggered 4 | . 2 . 2 Indirectly . | . . . . Trap Hack Attempts . | . . . . Triggered . | . . . . Disarmed . | . . . . Reprogrammed . | . . . . Reused . | . . . . Traps Extracted . | . . . . Installed 2 | . . . 2 Triggered 2 | . . . 2 Machines | -11 -10 -10 -10 ---------- Run | Yrd Mat Min Sub Machines Disabled 4 | . 4 . . Max in Single Turn 1 | . 1 . . Machines Repaired . | . . . . Machines Dismantled . | . . . . Machines Sabotaged . | . . . . Overloaded Fab Kills . | . . . . Hacking | -11 -10 -10 -10 --------- Run | Yrd Mat Min Sub Machines Accessed 9 | . 8 . 1 Terminals 6 | . 6 . . Fabricators . | . . . . Repair Stations . | . . . . Recycling Units 2 | . 2 . . Scanalyzers . | . . . . Garrison Access . | . . . . Total Hacks 29 | . 22 . 7 Successful 18 | . 11 . 7 Failed 11 | . 11 . . Catastrophic . | . . . . Database Lockouts . | . . . . Manual 17 | . 17 . . Terminals 17 | . 17 . . Fabricators . | . . . . Repair Stations . | . . . . Recycling Units 5 | . 5 . . Scanalyzers . | . . . . Garrison Access . | . . . . Terminal Hacks 14 | . 7 . 7 Record 7 | . . . 7 Robot Analysis 2 | . 2 . . Alert Level 1 | . 1 . . Unreport Threat 1 | . 1 . . Locate Traps 2 | . 2 . . Zone Layout 1 | . 1 . . Fabricator Hacks . | . . . . Repair Station Hacks . | . . . . Recycling Unit Hacks 1 | . 1 . . Retrieve Components 1 | . 1 . . Scanalyzer . | . . . . Garrison Access Hacks . | . . . . Unauthorized Hacks 3 | . 3 . . Terminals 2 | . 2 . . Assimilate 2 | . 2 . . Fabricators . | . . . . Repair Stations . | . . . . Recycling Units 1 | . 1 . . Reject 1 | . 1 . . Scanalyzers . | . . . . Garrison Access . | . . . . Data Cores Recovered . | . . . . Used . | . . . . Hacking Detections 8 | . 8 . . Full Trace Events 2 | . 2 . . Feedback Events . | . . . . Feedback Blocked . | . . . . Robot Schematics Acquired . | . . . . Robots Built . | . . . . Authchips . | . . . . Time . | . . . . Total Robot Build Rating . | . . . . Part Schematics Acquired . | . . . . Parts Built . | . . . . Authchips . | . . . . Time . | . . . . Total Part Build Rating . | . . . . Parts Repaired . | . . . . Time . | . . . . Parts Recycled . | . . . . Recycled Matter . | . . . . Retrieved Matter . | . . . . Retrieved Components 7 | . 7 . . Parts Scanalyzed . | . . . . Part Schematics Acquired . | . . . . Parts Damaged . | . . . . Bothacking | -11 -10 -10 -10 ------------ Run | Yrd Mat Min Sub Used RIF Installer . | . . . . Robots Hacked . | . . . . Non-combat . | . . . . Combat . | . . . . Robot Hacks Applied . | . . . . Relay Couplers Released . | . . . . Fabnet Peak Effective % . | . . . . Robots Rewired . | . . . . Allies Hacked . | . . . . Hacks Repelled . | . . . . Allies | -11 -10 -10 -10 -------- Run | Yrd Mat Min Sub Total Allies 1 | . 1 . . Largest Group 1 | . 1 1 . Highest-Rated Group 10 | . 10 9 . Highest-Rated Ally 10 | . 10 9 . Total Orders . | . . . . Ally Attacks . | . . . . Total Damage . | . . . . Kills . | . . . . Allies Corrupted . | . . . . Allies Melted . | . . . . Intel | -11 -10 -10 -10 ------- Run | Yrd Mat Min Sub Robot Analysis Total 2 | . 2 . . Derelict Logs Recovered 3 | . . 2 1 Drone Launches . | . . . . Drone Recoveries . | . . . . Exploration | -11 -10 -10 -10 ------------- Run | Yrd Mat Min Sub Turns Passed 4262 | 113 1461 1074 1614 Spaces Moved 2568 | 68 856 615 1029 Core 8 | 8 . . . Treads 3 | . 3 . . Legs 152 | 60 92 . . Wheels 2405 | . 761 615 1029 Hover . | . . . . Flight . | . . . . Fastest Speed 50 | 50 90 145 115 Average Speed 137 | 111 137 145 135 Slowest Speed 190 | 120 190 145 145 Overloaded Moves . | . . . . Propulsion Burnouts . | . . . . Robots Hopped . | . . . . Cave-ins Triggered . | . . . . Exploration Rate (%) 66 | 5 99 98 63 Regions Visited 3 Branch Regions 2 Pre-discovered Areas 3 | . . 1 2 Known Exits Taken . | . . . . Unknown Exits Taken 3 | 1 1 1 . Scrap Searched 5 | . . 1 4 Spaces Dug 10 | . 4 4 2 Terrain Destroyed 58 | . 26 14 18 Melee . | . . . . Projectile 2 | . . 2 . AOE 56 | . 26 12 18 Terrain Rammed . | . . . . Walls Destroyed . | . . . . Machines Disabled . | . . . . Actions | -11 -10 -10 -10 --------- Run | Yrd Mat Min Sub Total 3063 | 94 1027 787 1155 Wait 216 | 10 41 158 7 Move 2565 | 67 855 614 1029 Hop . | . . . . Pick Up 59 | 7 29 3 20 Fast Attach 8 | 6 2 . . Attach 10 | . 7 . 3 Detach 2 | . 1 . 1 Swap 31 | . 9 3 19 Drop 34 | . 11 3 20 Fire 133 | 4 72 6 51 Melee . | . . . . Ram . | . . . . Kick . | . . . . Crush . | . . . . Escape Stasis . | . . . . Rewire . | . . . . Trap 2 | . . . 2 Miscellaneous 3 | . . . 3 Route ------- -11/Scrapyard -10/Materials (discovered 5 exits: [*Mat x3] / [*Min x2]) -10/Mines (discovered 3 exits: [*Mat x2] / *Sub) -10/Subcaves (discovered 1 exit: [*Mat]) History --------- Turn | Location | Event 15 | -11/Scrapyard | Discovered new exit (range 15) 114 | -11/Scrapyard | Entered Materials 316 | -10/Materials | Build established: Mutant 413 | -10/Materials | Lost 4 parts (1p1n2w) 459 | -10/Materials | Discovered new exit (range 14) 808 | -10/Materials | Discovered new exit (range 16) 936 | -10/Materials | Discovered new exit (range 10) 1206 | -10/Materials | Discovered new exit (range 8) 1206 | -10/Materials | Discovered new exit (range 14) 1347 | -10/Materials | Core integrity fell below 50% 1575 | -10/Materials | Entered Mines 1575 | -10/Mines | Accompanied by 1 ally 1688 | -10/Mines | Assembled infested the area 1690 | -10/Mines | Discovered new exit (range 13) 2148 | -10/Mines | Discovered new exit (range 5) 2187 | -10/Mines | Learned location of Mines (-9) 2515 | -10/Mines | Found a damaged Exp. Sensor Array with a note attached 2518 | -10/Mines | Found Prototype Device 2553 | -10/Mines | Learned 2 Materials zone layouts 2594 | -10/Mines | Discovered new exit (range 15) 2649 | -10/Mines | Entered Subcaves 2649 | -10/Subcaves | Identified Exp. Sensor Array 2672 | -10/Subcaves | Shifting Twisted Machinery released Piercing Trap 2673 | -10/Subcaves | Shifting Twisted Machinery released Sub. Power Source 3100 | -10/Subcaves | Shifting Twisted Machinery released Sub. Beam Cannon 3313 | -10/Subcaves | Shifting Twisted Machinery released Sub. Machine Gun 3407 | -10/Subcaves | Discovered new exit (range 14) 3739 | -10/Subcaves | Core integrity fell below 20% 3842 | -10/Subcaves | Learned location of Mines (-10) 4055 | -10/Subcaves | Visited Clippyterm 4058 | -10/Subcaves | Learned location of Deep Caves (-6) 4058 | -10/Subcaves | Learned Factory emergency access door positions 4081 | -10/Subcaves | A Subdweller sparked back to life 4081 | -10/Subcaves | A Subdweller sparked back to life 4109 | -10/Subcaves | Found Prototype Processor 4169 | -10/Subcaves | Shifting Twisted Machinery released Sub. Power Source 4263 | -10/Subcaves | Destroyed by ES-8NP(R) with Subdweller Beam Cannon Last Messages --------------- 04091_ MT-TR9(R) knocked back. 04097_ MT-TR9(R) Sub. Monowheel blasted off. 04097_ MT-TR9(R) knocked back. 04101_ 8F-U1M(R) destroyed. 04103_ MT-TR9(R) destroyed. 04103_ GQ-FM8(R) destroyed. 04109_ Dropped Imp. Light Cannon. 04109_ Acquired Prototype Processor. 04110_ Acquired 28 matter. 04113_ Acquired 14 matter. 04117_ Scrap Shield Fragment affixed to Scrap Shield (+5). Sub. Power Source falls loose from the Twisted Machinery. 04238_ Searching scrap... 04238_ Found Piercing Trap. 04238_ Found Sub. Monowheel. 04238_ Found 21 Matter. 04239_ Acquired 21 matter. 04240_ Installed Piercing Trap. Map ----- +----------------------------------------------------+ | ????????????????????????????????????????????????? | | ????????????????????????????????????????????????? | | ????????????????????????????????????????????????? | | ????????????????????????????????????????????????? | | ????????????????????????????????????????????????? | | ????????????????????????????????????????????????? | | ????????###???????#?????????????????????????????? | | ?????????" #####? ??????????????????????????????? | | ?????????? # ???????????????????????????????? | | ??????????## ????????????????????????????????? | | ??????????#" ##????????????????????????????????? | | ????????### "###?###??????????????????????????? | | ?????#### " ^=### #???????? ???????????????? | | ????## ####????? ??????????????? | | ???## ######### ##??? ???????????????? | | ???# #### ## #??? ????????????????? | | ???## ## ##?? ????????????????? | | ???## #??? ?????????????????? | | ???# #??? ??????????????????? | | ???# #?? #??????????????????? | | ???## ##?? ##?????????????????? | | ????# ### #??# #?????????????????? | | #??## ###?# ### #?????????????????? | | #??# #???# #?????????????????? | | #??## ### ##????????????????? | | #??# ### ### @ #????????????????? | | #### #?## ## ##????????????????? | | # # #??? #### ##?????????????????? | | #??? ###??##### #?????????????????? | | ####??? #?????????# #?????????????????? | | ###??????? ????????? ##?????????????????? | | #????????? ???????? ??????????????????? | | ##?????????? ?????????? ##?????????????????? | | ##?????????????###?????????? #??????????????????? | | ???????????????????????????? ??????????????????? | | ?????????????????????????????R??????????????????? | | ????????????????????????????? ?????????????????? | | ??????????????????????????????"?????????????????? | | ????????????????????????????????????????????????? | | ????????????????????????????????????????????????? | | ????????????????????????????????????????????????? | | ????????????????????????????????????????????????? | | ????????????????????????????????????????????????? | | ????????????????????????????????????????????????? | | ????????????????????????????????????????????????? | | ????????????????????????????????????????????????? | | ????????????????????????????????????????????????? | | ????????????????????????????????????????????????? | | ????????????????????????????????????????????????? | | ????????????????????????????????????????????????? | +----------------------------------------------------+ Best States ------------- Heat Dissipation 25 Energy Generation 10 Energy Capacity 250 Matter Stores 300 Matter Capacity 300 Sight Range 16 Robot Scan Range 20 Terrain Scan Range 16 Terrain Scan Density 10 Armor Coverage 800 Evasion (%) 55 Targeting Accuracy 5 Recoil Reduction 1 Item Schematics ----------------- None Robot Schematics ------------------ None Fabricated ------------ Nothing Alien Tech Used ----------------- None Achievements -------------- None Challenges ------------ None Game ------ Seed PotentialThunderRegenerator Manual? 0 Play Time 00:34:01 Cumulative 97.2 hours Start 2024.07.08 @ 23:53:13 End 2024.07.09 @ 00:27:11 Sessions 1 Manual Loads 0 Difficulty Rogue Special Mode None Game No. 58 Rogue 55 Adventurer 3 Explorer 0 Win Type - Total 2 Types 2/0/0/0/0/0/0/0/0 Lore% 52 Gallery% 55 Achievement% 46 Wizard Run 0 Options --------- Layout 1 ASCII 0 Keyboard 1 Movement Vi Keybinds 1 Fullscreen 2 Font 24/Smallcaps Map View 50x35 Zoom Use 0% Tactical HUD 1 Map Filters NONE Filters NONE Steam 1 RUN: 5d56e519-2b7a-4a79-aa0b-af7daa4c14bb